[Event "Titled Tuesday Blitz June 28 Early 2022"]
[White "Gaisinsky, Adam"]
[Black "Manukian, Artak"]
[WhiteFideId "2620561"]
[BlackFideId "13301373"]
[WhiteElo "1965"]
[BlackElo "2467"]
[Result "0-1"]
[Round "07"]
[TimeControl "180+1"]
[Date "2022.06.28"]
[WhiteClock "0:00:04"]
[BlackClock "0:00:42"]

1. d4 {[%clk 0:03:00]}  Nf6 {[%clk 0:02:59]} 2. Nf3 {[%clk 0:03:01]}  d5 {[%clk 0:02:59]} 3. Bf4 {[%clk 0:03:01]}  Bg4 {[%clk 0:02:58]} 4. Ne5 {[%clk 0:03:01]}  Bf5 {[%clk 0:02:58]} 5. e3 {[%clk 0:02:36]}  Nbd7 {[%clk 0:02:58]} 6. c4 {[%clk 0:02:36]}  c6 {[%clk 0:02:58]} 7. Qb3 {[%clk 0:02:36]}  Qb6 {[%clk 0:02:57]} 8. c5 {[%clk 0:02:36]}  Qxb3 {[%clk 0:02:57]} 9. axb3 {[%clk 0:02:37]}  Nxe5 {[%clk 0:02:56]} 10. Bxe5 {[%clk 0:02:37]}  Nd7 {[%clk 0:02:56]} 11. Bg3 {[%clk 0:02:37]}  e5 {[%clk 0:02:57]} 12. b4 {[%clk 0:02:37]}  Bxb1 {[%clk 0:02:51]} 13. Rxb1 {[%clk 0:02:37]}  a6 {[%clk 0:02:51]} 14. Kd2 {[%clk 0:02:36]}  f6 {[%clk 0:02:43]} 15. Ra1 {[%clk 0:02:36]}  Rc8 {[%clk 0:02:42]} 16. Be2 {[%clk 0:02:26]}  h5 {[%clk 0:02:27]} 17. h4 {[%clk 0:02:22]}  g6 {[%clk 0:02:23]} 18. Bd3 {[%clk 0:02:17]}  Kf7 {[%clk 0:02:19]} 19. f4 {[%clk 0:02:13]}  exd4 {[%clk 0:02:11]} 20. exd4 {[%clk 0:02:12]}  f5 {[%clk 0:02:09]} 21. Rae1 {[%clk 0:02:09]}  Bg7 {[%clk 0:02:03]} 22. Bf2 {[%clk 0:02:09]}  Nf6 {[%clk 0:01:59]} 23. Rhf1 {[%clk 0:02:01]}  Rcd8 {[%clk 0:01:48]} 24. g3 {[%clk 0:02:00]}  Rhe8 {[%clk 0:01:30]} 25. Rxe8 {[%clk 0:01:57]}  Rxe8 {[%clk 0:01:30]} 26. Re1 {[%clk 0:01:58]}  Ne4+ {[%clk 0:01:26]} 27. Bxe4 {[%clk 0:01:55]}  Rxe4 {[%clk 0:01:24]} 28. Rxe4 {[%clk 0:01:50]}  fxe4 {[%clk 0:01:19]} 29. Ke3 {[%clk 0:01:49]}  Kf6 {[%clk 0:01:15]} 30. Ke2 {[%clk 0:01:00]}  Kf5 {[%clk 0:01:13]} 31. Kf1 {[%clk 0:00:42]}  e3 {[%clk 0:01:03]} 32. Bxe3 {[%clk 0:00:39]}  Ke4 {[%clk 0:01:04]} 33. Ke2 {[%clk 0:00:25]}  Bxd4 {[%clk 0:01:03]} 34. Bxd4 {[%clk 0:00:20]}  Kxd4 {[%clk 0:01:04]} 35. Kf3 {[%clk 0:00:20]}  Kd3 {[%clk 0:00:53]} 36. g4 {[%clk 0:00:20]}  hxg4+ {[%clk 0:00:50]} 37. Kxg4 {[%clk 0:00:16]}  Ke4 {[%clk 0:00:50]} 38. Kg5 {[%clk 0:00:06]}  d4 {[%clk 0:00:49]} 39. f5 {[%clk 0:00:07]}  gxf5 {[%clk 0:00:48]} 40. h5 {[%clk 0:00:07]}  d3 {[%clk 0:00:49]} 41. h6 {[%clk 0:00:08]}  d2 {[%clk 0:00:49]} 42. h7 {[%clk 0:00:08]}  d1=Q {[%clk 0:00:50]} 43. h8=Q {[%clk 0:00:09]}  Qg4+ {[%clk 0:00:51]} 44. Kf6 {[%clk 0:00:08]}  f4 {[%clk 0:00:48]} 45. Qh7+ {[%clk 0:00:05]}  Ke3 {[%clk 0:00:48]} 46. Qe7+ {[%clk 0:00:05]}  Kf2 {[%clk 0:00:47]} 47. Qxb7 {[%clk 0:00:05]}  f3 {[%clk 0:00:46]} 48. Qxc6 {[%clk 0:00:04]}  Qxb4 {[%clk 0:00:46]} 49. Qb6 {[%clk 0:00:04]}  Qd4+ {[%clk 0:00:44]} 50. Ke6 {[%clk 0:00:03]}  Ke3 {[%clk 0:00:42]} 51. Qd6 {[%clk 0:00:02]}  f2 {[%clk 0:00:42]} 52. Qxd4+ {[%clk 0:00:01]}  Kxd4 {[%clk 0:00:42]} 53. c6 {[%clk 0:00:02]}  f1=Q {[%clk 0:00:43]} 54. c7 {[%clk 0:00:02]}  Qh3+ {[%clk 0:00:43]} 55. Kd6 {[%clk 0:00:03]}  Qc8 {[%clk 0:00:43]} 56. Kc6 {[%clk 0:00:03]}  Kc4 {[%clk 0:00:43]} 57. Kb6 {[%clk 0:00:04]}  Kb3 {[%clk 0:00:42]} 0-1


[Site "https://www.chess.com"]

[Event "Titled Tuesday Blitz June 28 Early 2022"]
[White "Garcia Cuenca, Victor"]
[Black "Gatterer, Florian"]
[WhiteFideId "2250829"]
[BlackFideId "811688"]
[WhiteElo "2317"]
[BlackElo "2218"]
[Result "0-1"]
[Round "07"]
[TimeControl "180+1"]
[Date "2022.06.28"]
[WhiteClock "0:01:44"]
[BlackClock "0:00:16"]

1. d3 {[%clk 0:02:58]}  d5 {[%clk 0:02:58]} 2. e4 {[%clk 0:02:59]}  dxe4 {[%clk 0:02:52]} 3. dxe4 {[%clk 0:03:00]}  Qxd1+ {[%clk 0:02:52]} 4. Kxd1 {[%clk 0:03:00]}  e5 {[%clk 0:02:52]} 5. c3 {[%clk 0:03:00]}  Be6 {[%clk 0:02:50]} 6. Kc2 {[%clk 0:03:00]}  Bc5 {[%clk 0:02:49]} 7. f3 {[%clk 0:02:59]}  Nd7 {[%clk 0:02:48]} 8. a4 {[%clk 0:02:59]}  a5 {[%clk 0:02:47]} 9. Nd2 {[%clk 0:02:59]}  O-O-O {[%clk 0:02:40]} 10. Bc4 {[%clk 0:02:59]}  Bxc4 {[%clk 0:02:32]} 11. Nxc4 {[%clk 0:03:00]}  b6 {[%clk 0:02:30]} 12. Ne2 {[%clk 0:02:57]}  Ne7 {[%clk 0:02:18]} 13. Bd2 {[%clk 0:02:56]}  f6 {[%clk 0:02:17]} 14. Nc1 {[%clk 0:02:56]}  Nc6 {[%clk 0:02:11]} 15. Nd3 {[%clk 0:02:56]}  Be7 {[%clk 0:02:10]} 16. Be3 {[%clk 0:02:49]}  h5 {[%clk 0:01:59]} 17. Rhb1 {[%clk 0:02:47]}  Nc5 {[%clk 0:01:39]} 18. Nxc5 {[%clk 0:02:43]}  Bxc5 {[%clk 0:01:40]} 19. Bxc5 {[%clk 0:02:41]}  bxc5 {[%clk 0:01:40]} 20. Ne3 {[%clk 0:02:40]}  Rd7 {[%clk 0:01:33]} 21. Rd1 {[%clk 0:02:38]}  Rhd8 {[%clk 0:01:31]} 22. Rxd7 {[%clk 0:02:38]}  Rxd7 {[%clk 0:01:32]} 23. Nc4 {[%clk 0:02:35]}  Kd8 {[%clk 0:01:26]} 24. g3 {[%clk 0:02:33]}  Ke7 {[%clk 0:01:25]} 25. f4 {[%clk 0:02:30]}  exf4 {[%clk 0:01:23]} 26. gxf4 {[%clk 0:02:31]}  Kf7 {[%clk 0:01:23]} 27. h4 {[%clk 0:02:23]}  Re7 {[%clk 0:01:22]} 28. Re1 {[%clk 0:02:21]}  Kg6 {[%clk 0:01:12]} 29. Kd3 {[%clk 0:02:16]}  Rd7+ {[%clk 0:01:09]} 30. Ke3 {[%clk 0:02:16]}  Kf7 {[%clk 0:01:09]} 31. Re2 {[%clk 0:02:11]}  Rd8 {[%clk 0:01:06]} 32. Rd2 {[%clk 0:02:10]}  Rxd2 {[%clk 0:01:05]} 33. Nxd2 {[%clk 0:02:10]}  g6 {[%clk 0:00:49]} 34. Kd3 {[%clk 0:02:09]}  g5 {[%clk 0:00:49]} 35. fxg5 {[%clk 0:02:06]}  fxg5 {[%clk 0:00:48]} 36. hxg5 {[%clk 0:02:06]}  h4 {[%clk 0:00:48]} 37. Nf3 {[%clk 0:02:06]}  h3 {[%clk 0:00:48]} 38. Ke2 {[%clk 0:02:01]}  Kg6 {[%clk 0:00:26]} 39. Kf2 {[%clk 0:02:00]}  Nd8 {[%clk 0:00:22]} 40. Kg3 {[%clk 0:01:57]}  Ne6 {[%clk 0:00:22]} 41. Kxh3 {[%clk 0:01:56]}  Nf4+ {[%clk 0:00:20]} 42. Kg3 {[%clk 0:01:55]}  Nd3 {[%clk 0:00:20]} 43. Ne5+ {[%clk 0:01:47]}  Nxe5 {[%clk 0:00:19]} 44. Kf4 {[%clk 0:01:47]}  Nd3+ {[%clk 0:00:18]} 45. Ke3 {[%clk 0:01:47]}  Nxb2 {[%clk 0:00:18]} 46. e5 {[%clk 0:01:47]}  Nxa4 {[%clk 0:00:17]} 47. Kd3 {[%clk 0:01:44]}  Nb6 {[%clk 0:00:16]} 0-1


[Site "https://www.chess.com"]

[Event "Titled Tuesday Blitz June 28 Early 2022"]
[White "Garv Gaur"]
[Black "Ladopoulos, Dimitrios"]
[WhiteFideId "45030839"]
[BlackFideId "4239580"]
[WhiteElo "1950"]
[BlackElo "2195"]
[Result "0-1"]
[Round "07"]
[TimeControl "180+1"]
[Date "2022.06.28"]
[WhiteClock "0:00:03"]
[BlackClock "0:00:06"]

1. d4 {[%clk 0:03:00]}  e6 {[%clk 0:01:10]} 2. Nf3 {[%clk 0:03:00]}  b6 {[%clk 0:01:10]} 3. c4 {[%clk 0:03:00]}  Bb7 {[%clk 0:01:11]} 4. g3 {[%clk 0:03:00]}  Bb4+ {[%clk 0:01:11]} 5. Bd2 {[%clk 0:03:00]}  Bxf3 {[%clk 0:01:12]} 6. exf3 {[%clk 0:03:00]}  Bxd2+ {[%clk 0:01:13]} 7. Qxd2 {[%clk 0:02:58]}  d5 {[%clk 0:01:13]} 8. Bg2 {[%clk 0:02:55]}  Ne7 {[%clk 0:01:14]} 9. f4 {[%clk 0:02:53]}  Nbc6 {[%clk 0:01:13]} 10. O-O {[%clk 0:02:44]}  dxc4 {[%clk 0:01:09]} 11. Rd1 {[%clk 0:02:43]}  O-O {[%clk 0:01:07]} 12. Na3 {[%clk 0:02:43]}  Rc8 {[%clk 0:01:03]} 13. Nxc4 {[%clk 0:02:43]}  Nd5 {[%clk 0:01:03]} 14. Ne5 {[%clk 0:02:42]}  Nxe5 {[%clk 0:01:03]} 15. dxe5 {[%clk 0:02:29]}  c6 {[%clk 0:01:01]} 16. f5 {[%clk 0:02:30]}  Qe7 {[%clk 0:00:53]} 17. f6 {[%clk 0:02:29]}  gxf6 {[%clk 0:00:52]} 18. exf6 {[%clk 0:02:30]}  Qxf6 {[%clk 0:00:53]} 19. Qe2 {[%clk 0:02:26]}  Kh8 {[%clk 0:00:52]} 20. Rac1 {[%clk 0:02:25]}  Rfd8 {[%clk 0:00:50]} 21. h3 {[%clk 0:02:22]}  c5 {[%clk 0:00:50]} 22. Rc4 {[%clk 0:02:21]}  Ne7 {[%clk 0:00:43]} 23. Rf4 {[%clk 0:02:15]}  Nf5 {[%clk 0:00:35]} 24. g4 {[%clk 0:02:08]}  Qg5 {[%clk 0:00:27]} 25. Rxd8+ {[%clk 0:02:02]}  Rxd8 {[%clk 0:00:26]} 26. Qe4 {[%clk 0:01:37]}  Rd1+ {[%clk 0:00:17]} 27. Kh2 {[%clk 0:01:37]}  Nd6 {[%clk 0:00:18]} 28. Qf3 {[%clk 0:01:33]}  e5 {[%clk 0:00:15]} 29. Rf6 {[%clk 0:01:25]}  Rd4 {[%clk 0:00:14]} 30. Rxd6 {[%clk 0:00:29]}  Rxd6 {[%clk 0:00:15]} 31. Qe2 {[%clk 0:00:05]}  Qf4+ {[%clk 0:00:14]} 32. Kg1 {[%clk 0:00:06]}  Kg7 {[%clk 0:00:14]} 33. Be4 {[%clk 0:00:06]}  Rd2 {[%clk 0:00:14]} 34. Qe1 {[%clk 0:00:07]}  Rxb2 {[%clk 0:00:14]} 35. Bf5 {[%clk 0:00:07]}  Rxa2 {[%clk 0:00:13]} 36. Kg2 {[%clk 0:00:07]}  Rb2 {[%clk 0:00:08]} 37. Qf1 {[%clk 0:00:07]}  a5 {[%clk 0:00:07]} 38. Bb1 {[%clk 0:00:04]}  a4 {[%clk 0:00:07]} 39. Kh1 {[%clk 0:00:02]}  a3 {[%clk 0:00:07]} 40. Qd3 {[%clk 0:00:02]}  Qc1+ {[%clk 0:00:04]} 41. Kg2 {[%clk 0:00:01]}  Rxb1 {[%clk 0:00:05]} 42. Qf5 {[%clk 0:00:02]}  Qh1+ {[%clk 0:00:05]} 43. Kg3 {[%clk 0:00:02]}  Rb3+ {[%clk 0:00:05]} 44. Kh4 {[%clk 0:00:02]}  Qxh3+ {[%clk 0:00:05]} 45. Kg5 {[%clk 0:00:03]}  Qh6# {[%clk 0:00:06]} 0-1


[Site "https://www.chess.com"]

[Event "Titled Tuesday Blitz June 28 Early 2022"]
[White "Gurevich, Dmitry"]
[Black "Skliarov, Viktor"]
[WhiteFideId "2000407"]
[BlackFideId "14106736"]
[WhiteElo "2506"]
[BlackElo "2229"]
[Result "1/2-1/2"]
[Round "07"]
[TimeControl "180+1"]
[Date "2022.06.28"]
[WhiteClock "0:00:08"]
[BlackClock "0:00:06"]

1. d4 {[%clk 0:02:41]}  Nf6 {[%clk 0:02:59]} 2. c4 {[%clk 0:02:39]}  e6 {[%clk 0:02:58]} 3. g3 {[%clk 0:02:38]}  c5 {[%clk 0:02:57]} 4. Nf3 {[%clk 0:02:36]}  b6 {[%clk 0:02:50]} 5. Bg2 {[%clk 0:02:34]}  Bb7 {[%clk 0:02:50]} 6. O-O {[%clk 0:02:34]}  cxd4 {[%clk 0:02:49]} 7. Qxd4 {[%clk 0:02:33]}  Nc6 {[%clk 0:02:48]} 8. Qf4 {[%clk 0:02:32]}  d6 {[%clk 0:02:44]} 9. Rd1 {[%clk 0:02:31]}  Be7 {[%clk 0:02:44]} 10. Nc3 {[%clk 0:02:30]}  a6 {[%clk 0:02:41]} 11. b3 {[%clk 0:02:30]}  Qc7 {[%clk 0:02:37]} 12. Bb2 {[%clk 0:02:28]}  O-O {[%clk 0:02:23]} 13. Rac1 {[%clk 0:02:27]}  Ne5 {[%clk 0:02:22]} 14. Nxe5 {[%clk 0:02:20]}  dxe5 {[%clk 0:02:21]} 15. Qd2 {[%clk 0:02:16]}  Bxg2 {[%clk 0:02:17]} 16. Kxg2 {[%clk 0:02:16]}  Qc6+ {[%clk 0:02:14]} 17. Kg1 {[%clk 0:02:16]}  Rfd8 {[%clk 0:02:09]} 18. Qe3 {[%clk 0:02:13]}  Bc5 {[%clk 0:02:06]} 19. Qf3 {[%clk 0:02:13]}  e4 {[%clk 0:01:37]} 20. Qf4 {[%clk 0:02:10]}  e3 {[%clk 0:01:25]} 21. f3 {[%clk 0:02:08]}  Rd2 {[%clk 0:01:16]} 22. Rb1 {[%clk 0:01:57]}  Rad8 {[%clk 0:01:11]} 23. Kf1 {[%clk 0:01:55]}  h6 {[%clk 0:01:00]} 24. Ke1 {[%clk 0:01:40]}  b5 {[%clk 0:00:50]} 25. Rxd2 {[%clk 0:01:18]}  exd2+ {[%clk 0:00:44]} 26. Kf1 {[%clk 0:01:15]}  bxc4 {[%clk 0:00:24]} 27. Qxc4 {[%clk 0:01:13]}  Nd5 {[%clk 0:00:16]} 28. Nd1 {[%clk 0:01:12]}  Qb6 {[%clk 0:00:09]} 29. a3 {[%clk 0:00:53]}  Bf2 {[%clk 0:00:09]} 30. Qe4 {[%clk 0:00:40]}  Be1 {[%clk 0:00:07]} 31. b4 {[%clk 0:00:36]}  f6 {[%clk 0:00:05]} 32. Bd4 {[%clk 0:00:31]}  Qb5 {[%clk 0:00:03]} 33. Bc5 {[%clk 0:00:27]}  Kf7 {[%clk 0:00:03]} 34. Qc2 {[%clk 0:00:24]}  Rc8 {[%clk 0:00:02]} 35. a4 {[%clk 0:00:23]}  Rxc5 {[%clk 0:00:02]} 36. Qxc5 {[%clk 0:00:16]}  Qxa4 {[%clk 0:00:02]} 37. b5 {[%clk 0:00:11]}  axb5 {[%clk 0:00:02]} 38. Qxb5 {[%clk 0:00:10]}  Qxd1 {[%clk 0:00:02]} 39. Rxd1 {[%clk 0:00:08]}  Ne3+ {[%clk 0:00:02]} 40. Kg1 {[%clk 0:00:09]}  Nxd1 {[%clk 0:00:03]} 41. Qd7+ {[%clk 0:00:08]}  Kg6 {[%clk 0:00:02]} 42. Qe8+ {[%clk 0:00:08]}  Kh7 {[%clk 0:00:02]} 43. Qxe6 {[%clk 0:00:08]}  Ne3 {[%clk 0:00:02]} 44. Qxe3 {[%clk 0:00:05]}  d1=Q {[%clk 0:00:03]} 45. Qe4+ {[%clk 0:00:06]}  Kg8 {[%clk 0:00:03]} 46. Qe8+ {[%clk 0:00:05]}  Kh7 {[%clk 0:00:03]} 47. Qe4+ {[%clk 0:00:06]}  g6 {[%clk 0:00:03]} 48. Qe7+ {[%clk 0:00:06]}  Kg8 {[%clk 0:00:03]} 49. Qe8+ {[%clk 0:00:06]}  Kg7 {[%clk 0:00:04]} 50. Qe7+ {[%clk 0:00:07]}  Kg8 {[%clk 0:00:05]} 51. Qe8+ {[%clk 0:00:07]}  Kg7 {[%clk 0:00:05]} 52. Qe7+ {[%clk 0:00:08]}  Kg8 {[%clk 0:00:06]} 1/2-1/2


[Site "https://www.chess.com"]

[Event "Titled Tuesday Blitz June 28 Early 2022"]
[White "Harvey, Marcus R"]
[Black "Shuvalov, Evgenij"]
[WhiteFideId "400092"]
[BlackFideId "4187237"]
[WhiteElo "2485"]
[BlackElo "2023"]
[Result "1-0"]
[Round "07"]
[TimeControl "180+1"]
[Date "2022.06.28"]
[WhiteClock "0:00:17"]
[BlackClock "0:00:10"]

1. d4 {[%clk 0:02:47]}  Nf6 {[%clk 0:02:59]} 2. c4 {[%clk 0:02:44]}  c5 {[%clk 0:02:59]} 3. d5 {[%clk 0:02:44]}  b5 {[%clk 0:02:59]} 4. cxb5 {[%clk 0:02:42]}  a6 {[%clk 0:02:58]} 5. bxa6 {[%clk 0:02:42]}  Bxa6 {[%clk 0:02:58]} 6. Nc3 {[%clk 0:02:42]}  d6 {[%clk 0:02:57]} 7. e4 {[%clk 0:02:43]}  Bxf1 {[%clk 0:02:58]} 8. Kxf1 {[%clk 0:02:44]}  g6 {[%clk 0:02:57]} 9. g3 {[%clk 0:02:43]}  Bg7 {[%clk 0:02:58]} 10. Kg2 {[%clk 0:02:43]}  O-O {[%clk 0:02:58]} 11. a4 {[%clk 0:02:42]}  Nbd7 {[%clk 0:02:56]} 12. Nf3 {[%clk 0:02:43]}  Qb6 {[%clk 0:02:51]} 13. Qe2 {[%clk 0:02:39]}  Rfb8 {[%clk 0:02:37]} 14. Ra3 {[%clk 0:02:38]}  Ne8 {[%clk 0:02:23]} 15. Rd1 {[%clk 0:02:09]}  Nc7 {[%clk 0:02:17]} 16. Nd2 {[%clk 0:02:07]}  Qa6 {[%clk 0:02:13]} 17. Qxa6 {[%clk 0:02:04]}  Rxa6 {[%clk 0:02:14]} 18. Nc4 {[%clk 0:02:00]}  Rb4 {[%clk 0:02:11]} 19. Ne3 {[%clk 0:01:37]}  Bxc3 {[%clk 0:01:55]} 20. bxc3 {[%clk 0:01:38]}  Rbxa4 {[%clk 0:01:51]} 21. Rb3 {[%clk 0:01:35]}  Kg7 {[%clk 0:01:33]} 22. c4 {[%clk 0:01:33]}  Ne8 {[%clk 0:01:26]} 23. Bb2+ {[%clk 0:01:33]}  Nef6 {[%clk 0:01:22]} 24. g4 {[%clk 0:01:29]}  Ne5 {[%clk 0:01:13]} 25. f4 {[%clk 0:01:22]}  Nxc4 {[%clk 0:00:59]} 26. Nxc4 {[%clk 0:01:11]}  Rxc4 {[%clk 0:01:00]} 27. g5 {[%clk 0:01:11]}  Rc2+ {[%clk 0:01:00]} 28. Kg3 {[%clk 0:01:07]}  Ra2 {[%clk 0:00:57]} 29. gxf6+ {[%clk 0:01:08]}  exf6 {[%clk 0:00:58]} 30. Rb1 {[%clk 0:01:05]}  Re2 {[%clk 0:00:52]} 31. e5 {[%clk 0:00:54]}  fxe5 {[%clk 0:00:49]} 32. fxe5 {[%clk 0:00:54]}  dxe5 {[%clk 0:00:49]} 33. Kf3 {[%clk 0:00:42]}  Rxh2 {[%clk 0:00:49]} 34. Bxe5+ {[%clk 0:00:41]}  f6 {[%clk 0:00:49]} 35. Bxh2 {[%clk 0:00:41]}  Rxh2 {[%clk 0:00:49]} 36. Rd1 {[%clk 0:00:42]}  Rh3+ {[%clk 0:00:47]} 37. Ke4 {[%clk 0:00:41]}  Rxb3 {[%clk 0:00:48]} 38. d6 {[%clk 0:00:41]}  Rb8 {[%clk 0:00:48]} 39. Kd5 {[%clk 0:00:42]}  g5 {[%clk 0:00:45]} 40. Ke6 {[%clk 0:00:24]}  g4 {[%clk 0:00:38]} 41. d7 {[%clk 0:00:24]}  h5 {[%clk 0:00:19]} 42. d8=Q {[%clk 0:00:19]}  Rxd8 {[%clk 0:00:20]} 43. Rxd8 {[%clk 0:00:20]}  g3 {[%clk 0:00:19]} 44. Kf5 {[%clk 0:00:17]}  g2 {[%clk 0:00:13]} 45. Rd1 {[%clk 0:00:16]}  c4 {[%clk 0:00:13]} 46. Rg1 {[%clk 0:00:16]}  Kf7 {[%clk 0:00:11]} 47. Rxg2 {[%clk 0:00:16]}  h4 {[%clk 0:00:10]} 48. Rc2 {[%clk 0:00:16]}  Kg7 {[%clk 0:00:10]} 49. Rxc4 {[%clk 0:00:16]}  h3 {[%clk 0:00:10]} 50. Rh4 {[%clk 0:00:17]} 1-0


[Site "https://www.chess.com"]

[Event "Titled Tuesday Blitz June 28 Early 2022"]
[White "Hoffmann, Asa"]
[Black "Mrudul Dehankar"]
[WhiteFideId "2001470"]
[BlackFideId "25096990"]
[WhiteElo "2117"]
[BlackElo "1766"]
[Result "0-1"]
[Round "07"]
[TimeControl "180+1"]
[Date "2022.06.28"]
[WhiteClock "0:01:45"]
[BlackClock "0:00:05"]

1. d4 {[%clk 0:02:58]}  Nf6 {[%clk 0:02:50]} 2. Bg5 {[%clk 0:02:57]}  c5 {[%clk 0:02:49]} 3. d5 {[%clk 0:02:56]}  Ne4 {[%clk 0:02:49]} 4. Bc1 {[%clk 0:02:55]}  e6 {[%clk 0:02:42]} 5. Nc3 {[%clk 0:02:51]}  Qh4 {[%clk 0:01:25]} 6. Nxe4 {[%clk 0:02:45]}  Qxe4 {[%clk 0:01:24]} 7. dxe6 {[%clk 0:02:36]}  dxe6 {[%clk 0:01:23]} 8. Nf3 {[%clk 0:02:36]}  Nc6 {[%clk 0:01:21]} 9. c3 {[%clk 0:02:35]}  Be7 {[%clk 0:01:19]} 10. g3 {[%clk 0:02:35]}  O-O {[%clk 0:01:17]} 11. Bg2 {[%clk 0:02:35]}  Rd8 {[%clk 0:01:12]} 12. Bd2 {[%clk 0:02:30]}  Qg6 {[%clk 0:00:46]} 13. O-O {[%clk 0:02:23]}  e5 {[%clk 0:00:45]} 14. Qc1 {[%clk 0:02:20]}  e4 {[%clk 0:00:40]} 15. Ne1 {[%clk 0:02:18]}  Be6 {[%clk 0:00:13]} 16. Nc2 {[%clk 0:02:17]}  Ne5 {[%clk 0:00:12]} 17. Ne3 {[%clk 0:02:14]}  h5 {[%clk 0:00:11]} 18. Qc2 {[%clk 0:02:11]}  f5 {[%clk 0:00:10]} 19. b3 {[%clk 0:02:06]}  h4 {[%clk 0:00:09]} 20. Rad1 {[%clk 0:02:05]}  Bf6 {[%clk 0:00:09]} 21. c4 {[%clk 0:01:57]}  Nc6 {[%clk 0:00:09]} 22. Nd5 {[%clk 0:01:56]}  Bxd5 {[%clk 0:00:08]} 23. cxd5 {[%clk 0:01:56]}  Nd4 {[%clk 0:00:08]} 24. Qxc5 {[%clk 0:01:52]}  Rac8 {[%clk 0:00:06]} 25. Qxa7 {[%clk 0:01:49]}  Nxe2+ {[%clk 0:00:06]} 26. Kh1 {[%clk 0:01:49]}  hxg3 {[%clk 0:00:05]} 27. fxg3 {[%clk 0:01:48]}  Bd4 {[%clk 0:00:05]} 28. Qxb7 {[%clk 0:01:45]}  Nxg3+ {[%clk 0:00:05]} 0-1


[Site "https://www.chess.com"]

[Event "Titled Tuesday Blitz June 28 Early 2022"]
[White "Hu, Merric"]
[Black "Nunez V, Gustavo Eduardo"]
[WhiteFideId "30906660"]
[BlackFideId "4403690"]
[WhiteElo "1912"]
[BlackElo "2228"]
[Result "1-0"]
[Round "07"]
[TimeControl "180+1"]
[Date "2022.06.28"]
[WhiteClock "0:01:58"]
[BlackClock "0:01:10"]

1. Nf3 {[%clk 0:02:57]}  g6 {[%clk 0:02:56]} 2. d4 {[%clk 0:02:54]}  Bg7 {[%clk 0:02:56]} 3. c4 {[%clk 0:02:53]}  d6 {[%clk 0:02:57]} 4. Nc3 {[%clk 0:02:53]}  Nd7 {[%clk 0:02:58]} 5. e4 {[%clk 0:02:53]}  c5 {[%clk 0:02:57]} 6. Be3 {[%clk 0:02:52]}  Ngf6 {[%clk 0:02:56]} 7. h3 {[%clk 0:02:51]}  O-O {[%clk 0:02:56]} 8. Be2 {[%clk 0:02:51]}  cxd4 {[%clk 0:02:56]} 9. Nxd4 {[%clk 0:02:52]}  Nc5 {[%clk 0:02:56]} 10. f3 {[%clk 0:02:51]}  Bd7 {[%clk 0:02:55]} 11. Qd2 {[%clk 0:02:50]}  a6 {[%clk 0:02:56]} 12. g4 {[%clk 0:02:50]}  Rc8 {[%clk 0:02:52]} 13. g5 {[%clk 0:02:50]}  Nh5 {[%clk 0:02:51]} 14. b3 {[%clk 0:02:46]}  Ng3 {[%clk 0:02:51]} 15. Rh2 {[%clk 0:02:45]}  Ne6 {[%clk 0:02:42]} 16. h4 {[%clk 0:02:37]}  Nxd4 {[%clk 0:02:40]} 17. Bxd4 {[%clk 0:02:37]}  Bxd4 {[%clk 0:02:32]} 18. Qxd4 {[%clk 0:02:38]}  Nh5 {[%clk 0:02:32]} 19. Nd5 {[%clk 0:02:31]}  Be6 {[%clk 0:02:29]} 20. f4 {[%clk 0:02:29]}  Bxd5 {[%clk 0:02:29]} 21. Bxh5 {[%clk 0:02:29]}  Qa5+ {[%clk 0:02:26]} 22. Kf2 {[%clk 0:02:24]}  Be6 {[%clk 0:02:05]} 23. Be2 {[%clk 0:02:21]}  Qc5 {[%clk 0:02:05]} 24. Qxc5 {[%clk 0:02:19]}  Rxc5 {[%clk 0:02:06]} 25. Ke3 {[%clk 0:02:19]}  a5 {[%clk 0:02:04]} 26. h5 {[%clk 0:02:19]}  Kg7 {[%clk 0:01:35]} 27. hxg6 {[%clk 0:02:15]}  fxg6 {[%clk 0:01:36]} 28. Rah1 {[%clk 0:02:14]}  Bg8 {[%clk 0:01:36]} 29. Bd3 {[%clk 0:02:11]}  e5 {[%clk 0:01:36]} 30. f5 {[%clk 0:02:11]}  b5 {[%clk 0:01:28]} 31. cxb5 {[%clk 0:02:09]}  a4 {[%clk 0:01:27]} 32. f6+ {[%clk 0:02:08]}  Kh8 {[%clk 0:01:22]} 33. bxa4 {[%clk 0:02:05]}  Rc3 {[%clk 0:01:22]} 34. b6 {[%clk 0:02:00]}  Ra8 {[%clk 0:01:15]} 35. f7 {[%clk 0:02:00]}  Bxf7 {[%clk 0:01:14]} 36. Rxh7+ {[%clk 0:02:00]}  Kg8 {[%clk 0:01:15]} 37. Rh8+ {[%clk 0:02:01]}  Kg7 {[%clk 0:01:15]} 38. Rxa8 {[%clk 0:02:01]}  Bc4 {[%clk 0:01:15]} 39. Rd1 {[%clk 0:02:00]}  d5 {[%clk 0:01:11]} 40. exd5 {[%clk 0:02:00]}  Bxd5 {[%clk 0:01:10]} 41. b7 {[%clk 0:01:57]}  Bxb7 {[%clk 0:01:08]} 42. Ra7 {[%clk 0:01:57]}  Rc7 {[%clk 0:01:07]} 43. Be4 {[%clk 0:01:58]}  Rc3+ {[%clk 0:01:06]} 44. Rd3 {[%clk 0:01:57]}  Rxd3+ {[%clk 0:01:07]} 45. Kxd3 {[%clk 0:01:58]}  Kf7 {[%clk 0:01:07]} 46. Rxb7+ {[%clk 0:01:58]}  Ke6 {[%clk 0:01:08]} 47. a5 {[%clk 0:01:59]}  Kd6 {[%clk 0:01:08]} 48. a6 {[%clk 0:02:00]}  Kc5 {[%clk 0:01:09]} 49. a7 {[%clk 0:02:00]}  Kd6 {[%clk 0:01:08]} 50. a8=Q {[%clk 0:02:00]}  Kc5 {[%clk 0:01:09]} 51. Qa5+ {[%clk 0:01:59]}  Kd6 {[%clk 0:01:10]} 52. Qd5# {[%clk 0:01:58]} 1-0


[Site "https://www.chess.com"]